bitfinex-derivatives/quotes_SOLF0:USTF0_20250924
["timestamp","ask_amount","ask_price","bid_price","bid_amount"]
[1758680224012,7.08,213.92,213.83,65.4424]
[1758680224221,39.58,213.94,213.84,72.8016]
[1758680224514,68.8,213.96,213.88,4.206]
[1758680224713,1.22205967,213.95,213.88,4.206]
[1758680224909,1.22200888,213.94,213.84,7.36]
[1758680225210,7.08,213.95,213.84,7.36]
[1758680225411,7.08,213.95,213.84,11.27288001]
[1758680226119,96.28,213.95,213.85,65.438]
[1758680226617,7.08,213.95,213.85,65.438]
[1758680227212,7.08,213.95,213.85,69.35088001]
[1758680227414,7.08,213.95,213.9,4.2056]
[1758680227616,7.08,213.95,213.87,7.36]
[1758680227807,65.3751,214.06,213.89,7.36]
[1758680227808,7.08,214.02,213.89,7.36]
[1758680228009,71.8026566,214.01,213.89,7.36]
[1758680228319,1.2226566,214.0,213.89,7.36]
[1758680228515,7.08,214.0,213.89,7.36]
[1758680228715,7.08,213.98,213.85,3.91288001]
[1758680228918,4.9209052,213.97,213.84,11.27288001]
[1758680229218,7.08,213.93,213.85,4.2067]
[1758680229716,1.295113,213.92,213.85,4.2067]
[1758680229918,4.2058,213.9,213.84,7.36]
[1758680230314,4.2058,213.9,213.83,4.2071]
[1758680230510,11.2858,213.9,213.83,4.2071]
[1758680230909,11.2858,213.9,213.82,3.91288001]
[1758680231115,11.2858,213.9,213.81,4.2075]
[1758680231618,4.2061,213.89,213.81,4.2075]
[1758680231812,7.08,213.87,213.8,7.36]
[1758680232015,7.08,213.85,213.74,7.36]
[1758680232312,123.1408473,213.84,213.76,4.2084]
[1758680232518,1.2938473,213.83,213.76,7.36]
[1758680232714,1.2938473,213.82,213.76,7.36]
[1758680232921,7.08,213.85,213.77,65.4624]
[1758680233226,28.73,213.91,213.81,7.44]
[1758680233414,1.29162571,213.9,213.81,7.44]
[1758680233728,7.13,213.91,213.81,7.44]
[1758680234022,80.68,213.93,213.81,7.44]
[1758680234023,7.13,213.89,213.81,7.44]
[1758680234213,1.23018964,213.88,213.81,7.44]
[1758680234521,7.13,213.89,213.81,7.44]
[1758680234720,1.22916547,213.88,213.81,7.44]
[1758680234922,7.13,213.89,213.81,7.44]
[1758680235122,1.22916471,213.88,213.81,7.44]
[1758680235319,7.13,213.89,213.81,7.44]
[1758680236926,7.13,213.89,213.83,4.207]
[1758680237626,122.1259,213.9,213.84,4.2068]
[1758680238121,125.05,213.9,213.84,4.2068]
[1758680238520,125.05,213.9,213.81,11.6474]
[1758680238720,125.05,213.9,213.81,7.44]
[1758680239028,4.2064,213.87,213.81,4.2074]
[1758680239226,7.13,213.89,213.77,7.44]
[1758680239525,7.13,213.89,213.78,65.4589]
[1758680239726,7.13,213.89,213.83,4.207]
[1758680240420,7.13,213.87,213.83,4.207]
[1758680241215,117.74,213.88,213.83,4.207]
[1758680241621,7.13,213.87,213.83,4.207]
[1758680242125,117.74,213.88,213.83,4.207]
[1758680242423,7.13,213.87,213.83,4.207]
[1758680242720,117.74,213.88,213.83,4.207]
[1758680242924,7.13,213.87,213.83,4.207]
[1758680243123,7.13,213.87,213.78,65.4589]
[1758680243324,124.87,213.88,213.77,7.44]
[1758680243821,124.87,213.88,213.81,4.2074]
[1758680244122,129.0763,213.88,213.81,4.2074]
[1758680244317,7.13,213.88,213.78,65.4591]
[1758680244525,7.58,213.94,213.83,7.75]
[1758680244721,118.86483322,213.93,213.83,7.75]
[1758680244918,7.58,213.94,213.86,65.4346]
[1758680245124,7.58,214.0,213.89,7.75]
[1758680245426,117.68,213.99,213.93,7.75]
[1758680245725,125.34,214.03,213.93,7.75]
[1758680246625,125.34,214.03,213.94,4.2048]
[1758680246923,7.58,214.12,213.96,7.75]
[1758680247123,7.58,214.1,214.0,4.2037]
[1758680247318,1.22550589,214.09,214.0,4.2037]
[1758680248020,1.22550589,214.09,213.98,4.2042]
[1758680248226,7.58,214.08,213.96,7.75]
[1758680248617,7.58,214.08,213.91,73.1703]
[1758680248618,7.58,214.07,213.91,73.1703]
[1758680248819,7.58,214.05,213.91,73.1703]
[1758680249027,79.16,214.04,213.91,73.1703]
[1758680249233,7.58,214.05,213.96,7.75]
[1758680249431,117.7,214.04,213.96,7.75]
[1758680250117,117.7,214.04,213.9,7.75]
[1758680250324,7.58,214.03,213.9,7.75]
[1758680250531,7.58,214.03,213.94,4.2048]
[1758680250729,7.58,214.03,213.9,7.75]
[1758680250921,7.58,214.01,213.9,7.75]
[1758680251121,7.58,213.97,213.9,7.75]
[1758680251321,49.28,213.97,213.84,7.75]
[1758680251920,4.2046,213.96,213.84,7.75]
[1758680252131,7.58,213.96,213.84,7.75]
[1758680252435,7.58,213.96,213.75,353.58]
[1758680252436,7.58,213.93,213.78,7.75]
[1758680252732,7.58,213.91,213.79,4.2078]
[1758680253327,7.58,213.91,213.78,7.75]
[1758680253328,4.2065,213.86,213.78,7.75]
[1758680253530,7.58,213.87,213.78,7.75]
[1758680254036,4.2066,213.86,213.78,11.958]
[1758680255131,7.58,213.87,213.78,11.958]
[1758680255731,7.58,213.87,213.74,65.4725]
[1758680255732,7.58,213.87,213.75,4.2085]
[1758680256151,73.0137,213.87,213.75,4.2085]
[1758680256346,7.58,213.84,213.72,4.2091]
[1758680257349,7.58,213.79,213.7,7.75]
[1758680257551,117.82,213.78,213.69,4.2097]
[1758680260349,7.58,213.87,213.75,65.4694]
[1758680260553,1.2245078,213.86,213.76,7.75]
[1758680260756,59.38,213.87,213.76,7.75]
[1758680260951,120.18,213.87,213.78,65.4597]
[1758680261256,120.18,213.87,213.77,65.4626]
[1758680261453,70.55586884,213.98,213.82,65.448]
[1758680261653,8.80548127,213.97,213.87,73.1826]
[1758680261855,8.80548127,213.97,213.88,65.4288]
[1758680261856,1.22548127,213.96,213.88,65.4288]
[1758680262053,7.58,213.97,213.91,4.2055]
[1758680262261,118.14,213.98,213.89,65.4248]
[1758680262460,7.58,214.01,213.91,73.1701]
[1758680262656,8.806236,213.98,213.89,4.2058]
[1758680262958,7.58,213.98,213.9,65.4227]
[1758680263256,7.58,214.03,213.96,65.4049]
[1758680263556,74.52,214.07,213.97,7.75]
[1758680263958,1.2273922,214.06,213.97,7.75]
[1758680264261,1.2273922,214.05,213.97,7.75]
[1758680264463,1.2273922,214.04,213.97,7.75]
[1758680264660,74.52,214.07,213.97,7.75]
[1758680264862,1.22714052,214.06,213.97,7.75]
[1758680265061,1.22714052,214.05,213.97,7.75]
[1758680265257,1.22714052,214.04,213.97,7.75]
[1758680265457,7.58,214.08,213.97,7.75]
[1758680265458,79.48,214.05,213.97,7.75]
[1758680265855,79.48,214.05,213.99,4.2039]
[1758680266061,118.56,214.06,213.98,65.3987]
[1758680266456,353.6,214.11,214.0,65.3926]
[1758680266657,119.76763365,214.1,214.01,7.75]
[1758680266857,353.6,214.11,214.03,7.75]
[1758680267657,8.80745218,214.1,214.01,4.2035]
[1758680267856,7.58,214.1,214.01,4.2035]
[1758680268061,7.58,214.1,213.99,65.3934]
[1758680268460,7.58,214.1,214.0,4.2036]
[1758680268665,1.22675954,214.09,213.98,7.75]
[1758680268868,1.22675954,214.08,213.98,7.75]
[1758680269063,7.58,214.1,213.98,7.75]
[1758680269255,1.22665547,214.09,213.91,65.4179]
[1758680269460,8.80665547,214.08,213.92,7.75]
[1758680269661,7.58,214.06,213.92,7.75]
[1758680269866,7.58,214.06,213.95,7.75]
[1758680270061,87.06,214.05,213.95,7.75]
[1758680270260,118.46,214.04,213.95,7.75]
[1758680270761,122.6631,214.04,213.93,4.205]
[1758680270962,8.80536692,214.03,213.9,7.75]
[1758680271267,8.80536692,214.03,213.94,65.4112]
[1758680271268,118.48,214.03,213.94,65.4112]
[1758680271965,118.48,214.03,213.98,4.2041]
[1758680272169,118.5,214.05,213.98,7.75]
[1758680273171,118.5,214.05,213.97,4.2042]
[1758680273765,7.12,214.04,213.94,11.9548]
[1758680274865,11.323,214.04,213.94,11.9548]
[1758680275967,7.12,214.01,213.89,7.76]
[1758680277672,70.94,214.0,213.91,7.76]
[1758680277973,70.94,214.0,213.92,4.2052]
[1758680278273,70.94,214.0,213.91,7.76]
[1758680278573,70.94,214.0,213.94,4.2049]
[1758680279674,4.2042,213.98,213.9,4.2056]
[1758680279876,7.12,213.97,213.9,4.2056]
[1758680280074,7.12,214.01,213.89,73.1856]
[1758680280376,7.12,213.99,213.89,7.76]
[1758680281076,4.2044,213.97,213.85,7.76]
[1758680281369,65.4044,213.97,213.85,7.76]
[1758680281574,7.12,213.95,213.81,65.4506]
[1758680281876,4.2054,213.93,213.83,4.2071]
[1758680282068,38.52,213.92,213.81,65.451]
[1758680282470,38.52,213.92,213.8,7.76]
[1758680282471,7.12,213.91,213.8,7.76]
[1758680282768,7.12,213.89,213.75,7.76]
[1758680282967,11.3261,213.89,213.76,65.4656]
[1758680283167,11.3261,213.89,213.75,7.76]
[1758680283168,7.12,213.89,213.77,65.4632]
[1758680283473,97.1,213.89,213.78,7.76]
[1758680283674,7.12,213.89,213.8,65.4538]
[1758680283871,7.12,213.89,213.78,7.76]
[1758680284377,125.76,213.95,213.83,65.4446]
[1758680284667,1.2579439,213.94,213.86,4.2065]
[1758680284868,1.2579439,213.93,213.86,4.2065]
[1758680285062,129.9649,213.95,213.86,4.2065]
[1758680285269,1.25813108,213.94,213.86,4.2065]
[1758680285471,1.25813108,213.93,213.83,4.207]
[1758680285667,1.25813108,213.92,213.83,4.207]
[1758680285868,1.25813108,213.91,213.83,4.207]
[1758680286071,7.12,213.92,213.83,4.207]
[1758680286274,1.25820117,213.91,213.84,4.2068]
[1758680286570,7.12,213.92,213.82,7.76]
[1758680286772,1.25833661,213.91,213.85,4.2067]
[1758680286973,118.82,213.9,213.85,4.2067]
[1758680287174,7.12,213.92,213.85,4.2067]
[1758680287476,120.03859523,213.91,213.85,4.2067]
[1758680287676,118.78,213.91,213.85,4.2067]
[1758680288673,118.78,213.91,213.82,11.9671]
[1758680289175,8.37834987,213.9,213.8,4.2077]
[1758680289373,1.25834987,213.89,213.8,4.2077]
[1758680289575,1.25834987,213.88,213.8,4.2077]
[1758680289772,7.12,213.9,213.8,4.2077]
[1758680289971,7.12,213.87,213.8,4.2077]
[1758680290173,7.12,213.87,213.72,7.76]
[1758680290374,7.12,213.85,213.72,7.76]
[1758680290581,118.76,213.84,213.72,7.76]
[1758680291978,4.2071,213.83,213.76,4.2085]
[1758680294175,7.77,213.81,213.73,4.2089]
[1758680294775,4.2079,213.8,213.73,4.2089]
[1758680295674,7.77,213.81,213.75,4.2087]
[1758680295878,7.77,213.81,213.72,7.76]
[1758680296078,34.22,213.8,213.72,7.76]
[1758680296578,58.22,213.81,213.72,7.76]
[1758680296785,7.77,213.85,213.75,73.1488]
[1758680296978,86.2,213.84,213.75,7.68]
[1758680297175,4.2058,213.9,213.82,4.2072]
[1758680297383,1.25651372,213.89,213.81,65.451]
[1758680297580,118.6,213.9,213.8,65.454]
[1758680297882,7.77,213.91,213.8,65.454]
[1758680297883,0.62136615,213.95,213.83,65.4444]
[1758680298085,0.62136615,213.95,213.85,65.4388]
[1758680298086,1.25689507,213.94,213.85,65.4388]
[1758680298286,118.68,213.94,213.86,7.68]
[1758680298474,7.77,213.95,213.86,7.68]
[1758680298679,1.25728585,213.94,213.86,7.68]
[1758680298883,7.77,213.95,213.86,7.68]
[1758680299681,7.77,213.93,213.8,7.68]
[1758680299984,7.77,213.91,213.8,7.68]
[1758680300184,1.25742553,213.9,213.8,7.68]
[1758680300380,11.9764,213.87,213.78,4.2079]
[1758680300583,11.9764,213.87,213.75,7.68]
[1758680301183,4.2068,213.85,213.79,4.2078]
[1758680301775,4.2068,213.85,213.77,4.2083]
[1758680301980,11.9772,213.83,213.75,7.68]
[1758680302181,118.86,213.82,213.75,7.68]
[1758680302384,118.86,213.82,213.75,11.8886]
[1758680302980,118.86,213.82,213.73,4.2091]
[1758680303382,118.86,213.82,213.74,7.86]
[1758680304281,118.86,213.82,213.77,4.2083]
[1758680304891,118.86,213.82,213.78,7.86]
[1758680305090,118.8,213.85,213.78,65.4601]
[1758680305282,7.38,213.88,213.79,65.4557]
[1758680305484,94.42,213.88,213.79,73.3157]
[1758680306089,4.81306264,213.93,213.85,4.2067]
[1758680306283,127.43810069,213.92,213.85,4.2067]
[1758680306482,1.25810069,213.91,213.83,7.86]
[1758680306682,126.18,213.92,213.83,7.86]
[1758680306883,1.25836543,213.91,213.83,7.86]
[1758680307078,126.18,213.92,213.83,7.86]
[1758680307286,1.25890538,213.91,213.83,7.86]
[1758680307488,126.18,213.92,213.83,7.86]
[1758680307683,1.2589756,213.91,213.84,4.2068]
[1758680307887,126.18,213.92,213.84,4.2068]
[1758680307888,1.2589756,213.9,213.84,4.2068]
[1758680308187,7.38,213.88,213.84,4.2068]
[1758680308691,7.38,213.9,213.81,4.2074]
[1758680308888,1.25869802,213.89,213.81,4.2074]
[1758680309187,1.25869802,213.88,213.81,4.2074]
[1758680309380,7.38,213.9,213.81,4.2074]
[1758680309583,7.38,213.86,213.79,4.2079]
[1758680309788,118.78,213.85,213.79,4.2079]
[1758680309987,7.38,213.84,213.71,65.4806]
[1758680310192,7.38,213.84,213.74,7.86]
[1758680310794,1.25357626,213.83,213.74,7.86]
[1758680311092,7.38,213.84,213.74,7.86]
[1758680311285,1.253574,213.83,213.74,7.86]
[1758680311481,118.78,213.85,213.68,65.4904]
[1758680311789,74.0759078,213.84,213.69,7.86]
[1758680311989,7.38,213.82,213.69,7.86]
[1758680312191,11.5882,213.78,213.71,4.2093]
[1758680312386,118.82,213.77,213.71,4.2093]
[1758680312792,118.82,213.77,213.69,12.0698]
[1758680313191,118.82,213.77,213.69,7.86]
[1758680314292,118.8,213.77,213.69,7.86]
[1758680314790,118.8,213.77,213.72,4.2091]
[1758680314991,126.18,213.77,213.72,4.2091]
[1758680315296,126.12,213.77,213.72,4.2091]
[1758680315992,118.7,213.8,213.72,7.86]
[1758680316298,1.25574951,213.79,213.72,7.86]
[1758680316495,118.7,213.8,213.72,7.86]
[1758680316797,1.25603091,213.79,213.73,4.2091]
[1758680316997,118.7,213.8,213.72,7.86]
[1758680318297,126.08,213.8,213.76,4.2085]
[1758680318798,7.38,213.79,213.73,4.2089]
[1758680318991,7.38,213.79,213.72,7.86]
[1758680319193,7.38,213.79,213.68,7.86]
[1758680319392,1.2584179,213.78,213.68,7.86]
[1758680319596,8.6384179,213.77,213.72,4.2091]
[1758680319895,7.38,213.77,213.68,7.86]
[1758680320099,1.25843083,213.76,213.68,7.86]
[1758680320301,7.38,213.77,213.68,7.86]
[1758680320494,1.25903779,213.76,213.68,7.86]
[1758680320693,7.38,213.77,213.68,7.86]
[1758680320893,7.38,213.75,213.63,7.86]
[1758680321094,1.25883927,213.74,213.65,65.4995]
[1758680321400,7.38,213.75,213.71,4.2095]
[1758680321596,4.2083,213.78,213.69,7.86]
[1758680321597,118.56,213.78,213.69,7.86]
[1758680321794,1.25943707,213.77,213.69,7.86]
[1758680321995,1.25943707,213.76,213.69,7.86]
[1758680322197,1.25943707,213.75,213.69,7.86]
[1758680322400,125.94,213.78,213.69,7.86]
[1758680322601,1.2595687,213.77,213.69,7.86]
[1758680322894,1.2595687,213.76,213.74,4.2088]
[1758680323100,7.38,213.84,213.73,7.86]
[1758680323293,119.78001443,213.83,213.73,7.86]
[1758680323493,1.26001443,213.82,213.74,65.4723]
[1758680323896,1.26001443,213.82,213.78,4.208]
[1758680324096,1.26001443,213.82,213.74,65.4723]
[1758680324801,1.26001443,213.82,213.81,4.2075]
[1758680324996,7.38,213.84,213.81,4.2075]
[1758680325202,106.54,213.88,213.79,7.86]
[1758680325403,1.20173332,213.87,213.79,7.86]
[1758680325603,1.20173332,213.86,213.79,7.86]
[1758680325903,106.54,213.88,213.79,7.86]
[1758680326205,1.20177806,213.87,213.84,4.2068]
[1758680326498,1.20240986,213.86,213.75,73.3284]
[1758680326699,1.20240986,213.85,213.8,4.2077]
[1758680326898,106.54,213.88,213.8,4.2077]
[1758680327100,1.20228835,213.87,213.8,4.2077]
[1758680327300,1.20228835,213.86,213.8,4.2077]
[1758680327501,1.20228835,213.85,213.8,4.2077]
[1758680327701,8.58228835,213.84,213.8,4.2077]
[1758680327997,7.38,213.84,213.8,4.2077]
[1758680328197,7.38,213.84,213.81,4.2074]
[1758680328398,113.92,213.88,213.81,4.2074]
[1758680328601,1.20296006,213.87,213.81,4.2074]
[1758680328796,8.58296006,213.86,213.81,4.2074]
[1758680328992,106.54,213.88,213.8,7.86]
[1758680329196,1.20300801,213.87,213.8,7.86]
[1758680329393,106.54,213.88,213.8,7.86]
[1758680329596,1.20309316,213.87,213.8,12.0676]
[1758680329804,1.20309316,213.86,213.8,4.2076]
[1758680330004,113.92,213.88,213.8,4.2076]
[1758680330204,1.20298566,213.87,213.81,4.2073]
[1758680330404,8.58298566,213.86,213.81,4.2073]
[1758680330598,7.38,213.86,213.81,4.2073]
[1758680331607,7.38,213.86,213.82,4.2071]
[1758680331806,7.38,213.91,213.8,73.3122]
[1758680332106,1.20363177,213.9,213.8,73.3122]
[1758680332304,1.20363177,213.89,213.82,4.2073]
[1758680332503,1.20363177,213.88,213.82,4.2073]
[1758680332706,4.2059,213.9,213.83,4.207]
[1758680333008,1.20434265,213.89,213.8,7.86]
[1758680333304,1.20434265,213.88,213.8,7.86]
[1758680333501,4.2059,213.9,213.8,7.86]
[1758680333707,1.20450214,213.89,213.8,7.86]
[1758680333901,1.20450214,213.88,213.82,4.2072]
[1758680334106,4.2059,213.9,213.82,4.2072]
[1758680334307,1.20444928,213.89,213.8,7.86]
[1758680334502,86.0,213.91,213.8,7.86]
[1758680334705,1.20453112,213.9,213.8,7.86]
[1758680334904,1.20453112,213.89,213.8,7.86]
[1758680335104,125.68,213.91,213.84,4.2067]
[1758680335105,129.8856,213.91,213.84,4.2067]
[1758680335305,1.20433186,213.9,213.84,4.2067]
[1758680335509,8.65433186,213.89,213.84,4.2067]
[1758680335706,7.45,213.89,213.84,4.2067]
[1758680336707,7.45,213.95,213.85,7.27]
[1758680336904,1.20368063,213.94,213.85,7.27]
[1758680337110,7.45,213.95,213.86,65.4349]
[1758680337308,1.20358314,213.94,213.86,65.4349]
[1758680337507,7.45,213.95,213.86,65.4349]
[1758680337710,1.20354085,213.94,213.91,4.2053]
[1758680337911,353.42,213.96,213.88,7.27]
[1758680338309,118.2,213.98,213.88,7.27]
[1758680339707,118.2,213.98,213.93,7.27]
[1758680339907,118.2,213.98,213.9,7.27]
[1758680340110,7.45,213.97,213.86,7.27]
[1758680340310,7.45,213.97,213.89,4.2059]
[1758680340615,7.45,213.95,213.81,72.7193]
[1758680340917,7.45,213.95,213.83,7.27]
[1758680341512,5.40250311,213.94,213.86,4.2063]
[1758680341715,4.2051,213.94,213.83,7.27]
[1758680341914,7.45,213.95,213.83,7.27]
[1758680342117,7.45,213.95,213.84,65.4411]
[1758680342416,7.45,213.95,213.85,7.27]
[1758680342816,31.38,213.96,213.9,11.4757]
[1758680343019,31.38,213.96,213.9,4.2057]
[1758680343317,31.38,213.96,213.84,65.4411]
[1758680343318,8.64699285,213.95,213.81,7.27]
[1758680343517,1.19699285,213.94,213.81,7.27]
[1758680343707,1.19699285,213.94,213.82,65.447]
[1758680343911,1.19699285,213.94,213.83,7.27]
[1758680344315,7.45,213.95,213.83,7.27]
[1758680344717,7.45,213.95,213.86,7.27]
[1758680344914,47.3,213.98,213.86,7.27]
[1758680345118,47.3,213.98,213.89,7.27]
[1758680346020,7.45,214.02,213.93,7.27]
[1758680346414,7.45,214.02,213.96,4.2044]
[1758680346814,7.45,214.02,213.93,11.475]
[1758680347111,8.64775526,214.01,213.88,7.27]
[1758680347317,7.45,214.01,213.88,7.27]
[1758680347516,7.45,214.01,213.89,65.4251]
[1758680347717,7.45,214.01,213.9,7.27]
[1758680349309,74.03950689,214.0,213.89,4.2059]
[1758680349515,7.45,213.96,213.82,65.4477]
[1758680349925,4.2053,213.93,213.87,4.2062]
[1758680350123,7.45,213.94,213.81,7.27]
[1758680350526,7.45,213.94,213.82,4.2073]
[1758680350725,7.45,213.91,213.76,7.27]
[1758680351120,7.45,213.91,213.79,7.27]
[1758680351325,7.45,213.91,213.81,7.27]
[1758680351526,89.6,213.95,213.81,7.27]
[1758680352021,7.45,213.94,213.81,7.27]
[1758680352221,4.2044,213.97,213.9,4.2056]
[1758680352420,118.64,213.99,213.88,7.27]
[1758680352820,7.45,214.0,213.88,7.27]
[1758680353028,7.24,213.98,213.81,7.25]
[1758680353224,1.19598687,213.97,213.81,7.25]
[1758680353426,7.24,213.98,213.81,7.25]
[1758680353627,4.205,213.94,213.86,4.2064]
[1758680354128,4.2046,213.96,213.89,4.2058]
[1758680354725,7.24,213.98,213.89,4.2058]
[1758680355022,11.4442,213.98,213.9,4.2056]
[1758680355426,7.24,213.98,213.9,4.2056]
[1758680355621,1.19564462,213.97,213.85,4.2067]
[1758680355828,1.19564462,213.96,213.83,7.25]
[1758680356029,7.24,213.98,213.83,7.25]
[1758680356229,4.2049,213.95,213.86,4.2064]
[1758680356431,7.24,213.98,213.84,65.441]
[1758680356634,1.19550532,213.97,213.86,7.25]
[1758680356831,7.24,213.98,213.86,7.25]
[1758680357330,1.19560421,213.97,213.86,7.25]
[1758680357527,1.19546713,213.96,213.86,7.25]
[1758680357729,4.2054,213.92,213.8,72.7035]
[1758680358034,7.24,213.96,213.81,65.4509]
[1758680358225,1.19540597,213.95,213.81,65.4509]
[1758680358420,1.19540597,213.94,213.81,65.4509]
[1758680358725,4.205,213.95,213.83,65.4448]
[1758680358922,7.24,213.96,213.84,7.25]
[1758680359126,7.24,213.96,213.85,65.4384]
[1758680359431,7.24,213.96,213.91,4.2055]
[1758680359833,38.16,213.98,213.91,11.4555]
[1758680360034,1.19578452,213.97,213.91,11.4555]
[1758680360233,118.76,214.0,213.91,11.4555]
[1758680360423,1.19599427,213.99,213.91,11.4555]
[1758680360621,1.19599427,213.98,213.93,11.4551]
[1758680360827,118.76,214.0,213.94,7.25]
[1758680361329,7.24,214.06,213.94,72.6605]
[1758680361633,1.1965807,214.05,213.94,72.6605]
[1758680361829,1.1965807,214.05,213.86,8.413]
[1758680361830,7.24,214.03,213.85,65.4384]
[1758680362036,7.24,214.01,213.88,7.25]
[1758680362329,1.1965807,214.0,213.91,4.2054]
[1758680362535,7.24,214.01,213.91,4.2054]
[1758680362832,7.24,213.99,213.88,7.25]
[1758680363033,1.19618244,213.98,213.89,4.2059]
[1758680363229,130.384,213.99,213.89,4.2059]
[1758680363424,1.19617756,213.98,213.89,65.4254]
[1758680363731,118.94,214.02,213.89,65.4254]
[1758680363924,5.39986121,214.01,213.94,4.2048]
[1758680364126,118.94,214.02,213.91,65.4203]
[1758680364331,1.19647869,214.01,213.9,7.6]
[1758680364631,123.1436,214.02,213.94,4.2048]
[1758680364832,118.94,214.02,213.91,65.4194]
[1758680365337,1.19686125,214.01,213.91,65.4194]
[1758680365523,118.94,214.02,213.91,65.4194]
[1758680366030,11.923,214.04,213.91,65.4194]
[1758680366229,1.19733898,214.03,213.91,65.4194]
[1758680366435,11.923,214.04,213.94,7.6]
[1758680366624,7.72,214.1,213.96,65.4049]
[1758680366829,1.19766732,214.09,213.98,7.6]
[1758680367032,1.19766732,214.08,213.98,7.6]
[1758680367533,1.19766732,214.07,213.98,7.6]
[1758680367735,1.19766732,214.06,213.98,7.6]
[1758680367929,8.91766732,214.06,213.97,4.2042]
[1758680368129,1.19773127,214.05,213.97,4.2042]
[1758680368329,7.72,214.06,213.97,4.2042]
[1758680368534,1.19773696,214.05,213.97,4.2042]
[1758680368737,2.01118082,214.04,213.97,4.2042]
[1758680368928,5.01656424,214.04,213.97,4.2042]
[1758680369128,5.01656424,214.04,213.95,4.2047]
[1758680369429,5.01656424,214.04,213.93,7.6]
[1758680369626,0.81346424,214.04,213.95,7.6]
[1758680370124,4.2018,214.1,214.01,4.2034]
[1758680370330,0.81339769,214.07,213.97,7.6]
[1758680370530,1.19801605,214.06,213.97,7.6]
[1758680370725,1.19801605,214.05,213.97,7.6]
[1758680370927,4.203,214.05,213.97,11.8042]
[1758680371132,4.203,214.05,213.97,7.6]
[1758680371334,0.81339769,214.07,213.97,7.6]
[1758680371631,1.21074874,214.06,213.99,4.2038]
[1758680371936,5.01579769,214.07,213.97,7.6]
[1758680371937,1.21074874,214.05,213.97,7.6]
[1758680372135,1.21057535,214.04,213.97,7.6]
[1758680372333,5.01579769,214.07,213.97,7.6]
[1758680372635,1.21067838,214.06,213.98,4.204]
[1758680372836,1.21067838,214.05,213.98,4.204]
[1758680373036,4.2028,214.06,213.98,4.204]
[1758680373238,1.2107421,214.05,213.98,4.204]
[1758680373437,4.2028,214.06,213.98,4.204]
[1758680373736,1.21072168,214.05,213.98,4.204]
[1758680373938,1.21057911,214.04,213.97,7.6]
[1758680374132,0.81339769,214.07,213.97,7.6]
[1758680374333,1.21052729,214.06,213.97,11.8042]
[1758680374635,1.21052729,214.05,213.97,7.6]
[1758680374937,0.81339769,214.07,213.97,7.6]
[1758680375135,1.21067024,214.06,213.97,7.6]
[1758680375339,1.21067024,214.05,213.97,7.6]